Cogmind - Beta 11 @@@ ROGUE MODE // 2022.04.22 @ 00:55:43 Player: RNGesus Result: Destroyed by G-67 Veteran with Plasma Rifle Performance ------------- Evolutions (7) 3500 Regions Visited (30) 6000 Robots Destroyed (302) 1510 Value Destroyed (9716) 9716 Prototype IDs (106) 2120 Alien Tech Used (1) 200 Bonus (2022) 2022 TOTAL SCORE: 25068 Bonus ------- High Alert Combat Kills 466 Follower Combat Kills 670 Aligned with FarCom 300 Met Data Miner 300 Met Zhirov 300 Met Warlord at Base 500 MAIN.C Attacked Warlord 500 Friendly Fire -1014 Cogmind --------- Core Integrity 0/1300 Matter 300/300 Energy 99/100 System Corruption 8% Temperature Warning (337) Movement Core (200) Ox3 Location -3/Research Parts ------- > --- POWER (2) -------- (None) > --- PROPULSION (7) --- (None) > --- UTILITY (10) ----- Experimental Power Amplifier Spectral Analyzer Quantum Capacitor > --- WEAPON (2) ------- (None) > --- INVENTORY (5) ---- Advanced Heat Sink Thermal Barrier Peak State ------------ > --- POWER ------------ Vortex Chain Reactor > --- PROPULSION ------- Antigrav System Improved Antigrav System Cooled Antigrav System Combat Linear Gravjet Combat Linear Gravjet Combat Linear Gravjet Combat Linear Gravjet > --- UTILITY ---------- Advanced Cooling System Large Storage Unit Experimental Optical Array Makeshift Sensor Array Advanced Signal Interpreter Experimental Targeting Computer Advanced Transmission Jammer Centrium Medium Armor Plating Ghost Barrier Quantum Router > --- WEAPON ----------- Helical Railgun Vortex Lance > --- INVENTORY -------- Triangulator Spectral Analyzer Long-range Sensor Array Quantum Capacitor Centrium Medium Armor Plating Graphene Brace Thermal Barrier System Purifier Thief Drone Bay Disruptor Cannon Vortex Catalyst Activator Field Lobotomy Kit [Rating: 175] Favorites ----------- Power Light Nuclear Core Engine Ion Engine Power Core Light Nuclear Core Reactor Fusion Reactor Propulsion Light Treads Treads Light Treads Leg Improved Titanium Leg Wheel Armored Wheel Hover Unit Combat Linear Gravjet Flight Unit Improved Flight Unit Utility Huge Storage Unit Device Gravity Neutralizer Storage Huge Storage Unit Processor Experimental Optical Array Hackware Experimental System Shield Protection Hardened Light Armor Plating Weapon Longsword +1 Energy Gun Small Laser Energy Cannon Compact HERF Cannon Ballistic Gun Heavy Assault Rifle Launcher Mini Smartbomb Launcher Special Weapon Plasma Cutter Impact Weapon Makeshift Hammer Slashing Weapon Longsword +1 Piercing Weapon Vortex Lance Special Melee Weapon Datajack Build | -11 -10 -10 -9 -9 -9 -8 -8 -7 -7 -7 -6 -6 -6 -6 -5 -5 -5 -5 -5 -5 -5 -4 -4 -4 -4 -4 -4 -4 -3 -3 ------- Run | Scr Mat Min Mat Min Exi Min Mat Fac Was Fac Fac Low Low Dat Pro Fac Was Fac Upp Upp Zhi Pro Fac Was Fac Upp Upp War Pro Res Slots Evolved 14 | . . . 2 . . . 2 2 . . 2 . . . . 2 . . . . . . 2 . . . . . . 2 Power 1 | . . . . . . . . . . . . . . . . 1 . . . . . . . . . . . . . . Propulsion 5 | . . . 1 . . . 1 . . . 1 . . . . . . . . . . . 1 . . . . . . 1 Utility 8 | . . . 1 . . . 1 2 . . 1 . . . . 1 . . . . . . 1 . . . . . . 1 Weapon . | . . . . . . . . . . . . . . . . . . . . . . . . . . . . . . . Parts Attached 396 | 6 8 7 16 3 22 16 26 43 . 9 16 1 12 3 7 13 . 22 1 2 14 4 19 . 71 8 2 17 . 28 Power 41 | 1 1 . 3 . 2 . 2 3 . 1 . . 2 . . 1 . 7 . . 1 . 3 . 7 1 . 4 . 2 Engine 6 | 1 1 . 2 . . . . 1 . . . . . . . . . . . . . . . . 1 . . . . . Core 26 | . . . 1 . 2 . 2 2 . 1 . . 2 . . 1 . 7 . . . . 2 . 4 1 . 1 . . Reactor 9 | . . . . . . . . . . . . . . . . . . . . . 1 . 1 . 2 . . 3 . 2 Propulsion 78 | 2 1 1 5 1 4 3 10 10 . . 4 . 1 . . 2 . 7 . . 7 . 2 . 12 . . 1 . 5 Treads 16 | 2 . 1 4 1 2 1 4 . . . . . . . . . . . . . . . . . . . . . . 1 Leg 12 | . . . . . 2 2 5 1 . . . . . . . . . . . . . . . . . . . . . 2 Wheel 4 | . 1 . 1 . . . . 2 . . . . . . . . . . . . . . . . . . . . . . Hover 15 | . . . . . . . . . . . 2 . . . . . . . . . . . . . 10 . . 1 . 2 Flight 31 | . . . . . . . 1 7 . . 2 . 1 . . 2 . 7 . . 7 . 2 . 2 . . . . . Utility 166 | 1 2 . 4 . 6 4 8 18 . 8 10 1 5 . 2 7 . 6 1 1 5 4 8 . 40 7 1 7 . 10 Device 98 | . . . . . 4 1 3 7 . 7 6 . 4 . 1 3 . 4 1 1 4 3 6 . 27 6 1 4 . 5 Storage 7 | 1 1 . . . . . . 1 . . 1 . . . . 1 . . . . . . . . 2 . . . . . Processor 8 | . . . . . . 1 1 2 . . . . . . . . . 1 . . . . . . . 1 . . . 2 Hackware 12 | . . . . . . . . 2 . 1 . 1 . . 1 2 . . . . . . 2 . 2 . . . . 1 Protection 41 | . 1 . 4 . 2 2 4 6 . . 3 . 1 . . 1 . 1 . . 1 1 . . 9 . . 3 . 2 Artifact . | . . . . . . . . . . . . . . . . . . . . . . . . . . . . . . . Weapon 111 | 2 4 6 4 2 10 9 6 12 . . 2 . 4 3 5 3 . 2 . 1 1 . 6 . 12 . 1 5 . 11 Energy Gun 3 | 2 . . . . . . . . . . . . . . . . . . . . . . . . 1 . . . . . Energy Cannon 11 | . . . . . . . . . . . . . . . . . . . . . . . . . 5 . . 1 . 5 Ballistic Gun 47 | . 3 4 4 1 7 7 6 3 . . 2 . . . . 1 . . . . . . 2 . 4 . . 1 . 2 Ballistic Cannon . | . . . . . . . . . . . . . . . . . . . . . . . . . . . . . . . Launcher 26 | . 1 2 . 1 2 2 . 6 . . . . 2 . 2 . . 2 . 1 1 . 1 . . . . 1 . 2 Special Weapon 11 | . . . . . 1 . . 1 . . . . 1 2 3 2 . . . . . . . . . . . . . 1 Impact Weapon 1 | . . . . . . . . . . . . . . . . . . . . . . . . . . . 1 . . . Slashing Weapon 8 | . . . . . . . . 1 . . . . 1 1 . . . . . . . . 3 . 2 . . . . . Piercing Weapon 3 | . . . . . . . . . . . . . . . . . . . . . . . . . . . . 2 . 1 Special Melee Weapon 1 | . . . . . . . . 1 . . . . . . . . . . . . . . . . . . . . . . Unidentified Prototypes 41 | . . . 1 . 2 2 2 7 . . 1 . . . 1 2 . 2 . . 3 . 3 . 2 . . 10 . 3 Parts Lost 84 | . 1 . 4 . . 6 3 16 . . 1 . 2 . . 3 . 3 . . . . . . 14 3 . . . 28 Power 16 | . 1 . 2 . . . 1 3 . . . . 1 . . . . 2 . . . . . . 3 1 . . . 2 Propulsion 23 | . . . 1 . . 1 1 5 . . 1 . . . . . . 1 . . . . . . 2 . . . . 11 Utility 25 | . . . . . . 3 1 3 . . . . 1 . . 2 . . . . . . . . 4 1 . . . 10 Weapon 20 | . . . 1 . . 2 . 5 . . . . . . . 1 . . . . . . . . 5 1 . . . 5 Highest Loss Streak 11 | . 1 . 2 . . 6 2 11 . . 1 . 1 . . 1 . 2 . . . . . . 4 2 . . . 11 To Critical Strikes . | . . . . . . . . . . . . . . . . . . . . . . . . . . . . . . . Average Slot Usage (%) 92 | . 91 100 97 100 89 92 99 93 92 92 88 93 89 93 100 90 88 85 88 89 88 87 88 89 92 95 89 96 94 70 Engine 3 | . 13 14 9 11 4 . . . . . . . . . . . . . . . . . . . . . . . . . Core 5 | . . . . . 6 11 9 6 7 7 6 6 5 6 6 10 11 9 11 11 6 5 4 5 5 7 5 5 . . Treads 10 | . 18 14 20 22 24 . 21 . . . . . . . . . . . . . . . . . . . . . . . Leg 4 | . . . . . 3 29 14 20 . . . . . . . . . . . . . . . . . . . . . 3 Wheel 3 | . 9 14 10 11 5 . . . . . . . . . . . . . . . . . . . . . . . . . Hover 3 | . . . . . . . . . . . 2 . . . . . . . . . . . . . 18 31 31 31 31 17 Flight 7 | . . . . . . . . 6 30 30 26 33 32 33 33 23 23 22 23 23 21 17 21 21 7 . . . . . Device 8 | . . . . . 7 . 8 7 15 15 19 20 19 13 13 14 11 10 11 11 11 10 13 15 12 18 15 17 21 12 Storage 8 | . 14 14 11 11 11 11 9 7 7 7 6 6 6 6 6 5 5 5 5 5 5 5 5 5 5 5 5 5 5 3 Processor 5 | . . . . . . 6 2 14 7 7 6 6 6 6 6 5 5 9 11 11 11 11 10 10 10 12 15 13 10 9 Hackware 5 | . . . . . . . . 4 15 15 13 13 13 13 13 16 17 17 17 17 17 17 16 15 16 5 5 5 5 7 Protection 8 | . 5 14 21 22 12 11 15 10 . . . . . 6 6 2 5 1 . . . . . . 1 5 5 4 5 2 Ballistic Gun 10 | . 24 27 22 21 12 21 17 10 . . . . . . . . . . . . . . 1 . . . . . 5 1 Slashing Weapon 1 | . . . . . . . . 1 7 7 6 6 3 5 6 5 5 5 5 5 5 5 4 5 3 . . . . . Naked Turns . | . . . . . . . . . . . . . . . . . . . . . . . . . . . . . . . Heaviest Build 116 | 10 90 94 101 99 113 116 116 110 20 20 24 24 24 28 24 38 38 39 37 39 48 48 52 47 69 69 58 85 81 85 Greatest Support 104 | 40 40 12 12 12 63 83 83 80 20 20 32 25 25 25 25 41 41 44 44 44 48 48 54 54 95 80 80 93 93 104 Greatest Overweight (x) 8 | . 7 7 8 8 8 1 2 8 . . . . . 1 . . . . . . . . . . 2 . . 1 . 4 Average Overweight (x) 1 | . 4 7 7 8 4 1 1 . . . . . . . . . . . . . . . . . . . . . . . Largest Inventory Capacity 25 | 8 25 25 25 25 25 25 25 25 10 10 10 10 10 10 10 15 15 15 15 15 15 15 15 15 15 15 15 15 15 15 Average Capacity 19 | 7 20 25 25 25 25 25 25 21 10 10 10 10 10 10 10 13 15 15 15 15 15 15 15 15 15 15 15 15 15 13 Most Carried 25 | 3 22 25 25 25 25 24 25 25 10 10 10 10 10 10 10 15 15 15 15 15 15 15 15 15 15 15 15 15 15 15 Average Carried 17 | 1 13 23 24 25 18 22 24 21 10 10 9 10 9 9 9 12 14 14 15 14 14 15 14 15 14 14 15 14 15 12 Final Capacity 25 | 8 25 25 25 25 25 25 25 10 10 10 10 10 10 10 10 15 15 15 15 15 15 15 15 15 15 15 15 15 15 5 Final Carried 25 | 3 21 25 25 25 25 24 25 10 10 10 10 10 10 10 10 15 15 15 15 15 15 15 15 15 15 15 15 15 15 2 Class Distribution -------------------- 43% | Mutant 14% | Scavenger-Mutant 11% | Hacker-Sprinter 9% | Wizard-Scout 5% | Wizard-Ninja 3% | Hacker-Ninja 3% | Hacker-Mutant 3% | Wizard-Sprinter Dominant Class ---------------- Mutant | -10/Materials Mutant | -10/Mines Scavenger-Mutant | -9/Materials Mutant | -9/Mines Mutant | -9/Exiles Scavenger-Mutant | -8/Mines Scavenger-Mutant | -8/Materials Mutant | -7/Factory Hacker-Sprinter | -7/Waste Hacker-Sprinter | -7/Factory Hacker-Sprinter | -6/Factory Hacker-Sprinter | -6/Lower Caves Hacker-Sprinter | -6/Lower Caves Hacker-Sprinter | -6/Data Miner Hacker-Sprinter | -5/Proximity Caves Wizard-Sprinter | -5/Factory Wizard-Sprinter | -5/Waste Wizard-Scout | -5/Factory Wizard-Scout | -5/Upper Caves Wizard-Scout | -5/Upper Caves Wizard-Sprinter | -5/Zhirov Wizard-Scout | -4/Proximity Caves Wizard-Ninja | -4/Factory Wizard-Ninja | -4/Waste Wizard-Scout | -4/Factory Machinist-Scout | -4/Upper Caves Hacker-Scout | -4/Upper Caves Hacker-Ninja | -4/Warlord Hacker-Ninja | -3/Proximity Caves Hacker-Mutant | -3/Research Resources | -11 -10 -10 -9 -9 -9 -8 -8 -7 -7 -7 -6 -6 -6 -6 -5 -5 -5 -5 -5 -5 -5 -4 -4 -4 -4 -4 -4 -4 -3 -3 ----------- Run | Scr Mat Min Mat Min Exi Min Mat Fac Was Fac Fac Low Low Dat Pro Fac Was Fac Upp Upp Zhi Pro Fac Was Fac Upp Upp War Pro Res Matter Collected 8699 | 195 265 157 472 72 639 562 663 1564 . 116 282 26 234 . 118 226 98 222 27 122 280 318 506 . 953 114 14 200 . 254 Remotely . | . . . . . . . . . . . . . . . . . . . . . . . . . . . . . . . Salvage Created 11873 | . 427 203 704 77 245 599 928 2122 . 320 693 . 151 . 126 126 . 352 . 94 339 422 916 . 1748 165 . . . 1116 Parts 693 | . 34 22 50 4 69 15 53 127 . 13 39 . 15 . 7 13 . 34 . 5 3 10 38 . 92 4 . . . 46 Haulers Intercepted 20 | . 2 . 3 . . . 1 4 . 1 2 . . . . . . . . . . 1 3 . 2 . . . . 1 Recyclers Shooed 10 | . . . 3 . . 2 . 1 . . 1 . . . . . . . . . . . 1 . 1 . . . . 1 Parts Field Recycled . | . . . . . . . . . . . . . . . . . . . . . . . . . . . . . . . Retrieved Matter . | . . . . . . . . . . . . . . . . . . . . . . . . . . . . . . . Parts Self-Destructed 105 | . . . . . . . . . . . . . 10 . 2 . . . 5 3 1 9 . . . 3 . 72 . . Prevented 20 | . . . . . . . . . . . . . . . . . . . . . . . . . . 2 . 18 . . Kills | -11 -10 -10 -9 -9 -9 -8 -8 -7 -7 -7 -6 -6 -6 -6 -5 -5 -5 -5 -5 -5 -5 -4 -4 -4 -4 -4 -4 -4 -3 -3 ------- Run | Scr Mat Min Mat Min Exi Min Mat Fac Was Fac Fac Low Low Dat Pro Fac Was Fac Upp Upp Zhi Pro Fac Was Fac Upp Upp War Pro Res Combat Hostiles Destroyed 196 | . 11 8 12 4 5 8 16 43 . . 2 . 10 . 4 . . 12 . 2 . 13 1 . 19 4 . . . 22 Melee 22 | . . . . . . . . 2 . . 2 . 1 . . . . 3 . . . 1 1 . 3 . . . . 9 Guns 74 | . 9 2 12 2 1 3 16 24 . . . . . . . . . . . . . . . . 5 . . . . . Cannons 9 | . . . . . . . . . . . . . 1 . . . . . . . . . . . 3 3 . . . 2 AOE 85 | . 2 6 . 2 4 5 . 17 . . . . 8 . 4 . . 9 . 2 . 12 . . 5 . . . . 9 Classes Destroyed 22 | . 6 2 2 1 3 2 . 4 . . . . 1 . . . . . . . . . . . 1 . . . . . Worker 19 | . . . 2 . . . . 2 . . . . . . . 3 . . . . . . 3 . 6 . . . . 3 Builder 8 | . . 1 . . . . . 3 . . . . . . . . . 2 . . . . 1 . 1 . . . . . Tunneler 15 | . 1 1 . . . . . 3 . . 1 . . . . . . 2 . . . . 4 . 3 . . . . . Hauler 20 | . 2 . 3 . . . 1 4 . 1 2 . . . . . . . . . . 1 3 . 2 . . . . 1 Recycler 18 | . . . 1 . . 3 1 1 . 3 2 . . . . . . . . . . . 2 . 4 . . . . 1 Mechanic 1 | . 1 . . . . . . . . . . . . . . . . . . . . . . . . . . . . . Operator 7 | . 2 . . . . . . 2 . . 1 . . . . 1 . 1 . . . . . . . . . . . . Turret 1 | . . . . . 1 . . . . . . . . . . . . . . . . . . . . . . . . . Watcher 17 | . . . . . . . . 3 . . 3 . . . . 1 . 2 . . . . 4 . 2 . . . . 2 Swarmer 70 | . 6 6 3 . . . . 12 . . . . 8 . . . . 10 . . . 4 . . 7 2 . . . 12 Cutter 3 | . . . . . . . . . . . . . . . . . . . . . . . . . 3 . . . . . Grunt 62 | . 5 . 4 3 . 5 11 13 . . . . . . 3 . . . . . . 9 1 . 5 1 . . . 2 Brawler 4 | . . . . . . 1 1 . . . . . . . 1 . . . . . . . . . 1 . . . . . Protector 3 | . . . . . . . . 3 . . . . . . . . . . . . . . . . . . . . . . Sentry 16 | . . 2 5 . . . 4 1 . . . . . . . . . . . . . . . . 2 . . . . 2 Demolisher 1 | . . . . 1 . . . . . . . . . . . . . . . . . . . . . . . . . . Specialist 5 | . . . . . . . . 5 . . . . . . . . . . . . . . . . . . . . . . Hunter 9 | . . . . . . 1 . 2 . . . . . . . . . . . 2 . . . . . . . . . 4 Programmer 15 | . . . . . . . . 7 . . 2 . 1 . . . . 2 . . . . . . 1 . . . . 2 Zionite 1 | . . . . . 1 . . . . . . . . . . . . . . . . . . . . . . . . . Decomposer 1 | . . . . . . . . . . . . . . . . . . . . 1 . . . . . . . . . . Master Thief 2 | . . . . . . . . . . . . . 1 . . . . . . . . . . . . 1 . . . . Assembled 4 | . . . . . 4 . . . . . . . . . . . . . . . . . . . . . . . . . Best Kill Streak 14 | . 3 3 6 3 4 4 4 14 . 1 5 . 5 . 4 3 . 8 . 2 . 4 4 . 4 2 . . . 8 Combat Bots Only 13 | . 3 3 4 3 4 3 4 13 . . 1 . 5 . 4 . . 5 . 2 . 4 1 . 4 2 . . . 6 Max Kills in Single Turn 7 | . 2 3 1 1 3 2 1 6 . 1 1 . 3 . 2 1 . 5 . 1 . 2 1 . 3 1 . . . 7 Gunslinging 1 | . 1 . . . . . . 1 . . . . . . . . . . . . . . . . . . . . . . Exploded 6 | . 1 3 . 1 3 1 . 6 . . . . 3 . 2 . . 4 . 1 . 2 . . 2 . . . . 5 Melee 1 | . . . . . . . . 1 . . 1 . 1 . . . . 1 . . . 1 1 . 1 . . . . 1 Uniques/NPCs Destroyed 6 | . . . . . 4 1 . . . . . . . . 1 . . . . . . . . . . . . . . . 8R-AWN (-9/Exiles) EX-HEX (-9/Exiles) EX-BIN (-9/Exiles) EX-DEC (-9/Exiles) 12-ASH (-8/Mines) Data Miner (-5/Proximity Caves) Combat | -11 -10 -10 -9 -9 -9 -8 -8 -7 -7 -7 -6 -6 -6 -6 -5 -5 -5 -5 -5 -5 -5 -4 -4 -4 -4 -4 -4 -4 -3 -3 -------- Run | Scr Mat Min Mat Min Exi Min Mat Fac Was Fac Fac Low Low Dat Pro Fac Was Fac Upp Upp Zhi Pro Fac Was Fac Upp Upp War Pro Res Damage Taken 16861 | . 364 321 779 111 186 1766 630 3374 . 118 163 39 178 . 39 276 . 474 . . . 211 . . 2634 641 . 125 . 4432 Core 3128 | . 86 78 58 . . 313 85 308 . 118 25 . 66 . 18 79 . 118 . . . 23 . . 335 80 . 24 . 1314 Absorbed by Shields 33 | . . . . . . . . . . . . . . . . . . . . . . . . . . . . 33 . . Redirected to Shielding 147 | . . . . . . . . . . . . . . . . . . 107 . . . . . . 40 . . . . . Regen/Repaired (Parts) 442 | . . . . . . . 27 . . . 38 . . . . . . 184 . . . . 175 . 18 . . . . . Core Remaining (%) 61 | 100 . 34 . . . 7 84 . . 39 . . . . 87 . . . . . . 78 . . . . . . 61 . Volleys Fired 740 | 1 62 17 56 5 81 35 63 134 . . 21 . 18 1 15 7 . 5 . 5 . 20 14 . 76 33 3 9 . 59 Largest 2 | 2 2 2 2 2 2 2 2 2 . . 1 . 1 1 1 1 . 1 . 1 . 1 1 . 1 1 1 1 . 2 Hottest 113 | 80 80 46 46 46 60 53 50 80 . . 30 . 80 . 80 30 . 80 . 80 . 80 30 . 98 94 90 90 . 113 Shots Fired 1128 | 2 121 30 109 7 129 64 126 253 . . 21 . 18 1 15 7 . 5 . 5 . 20 14 . 76 33 3 9 . 60 Gun 876 | 2 118 26 109 4 97 58 126 243 . . 21 . . . . 7 . . . . . . 14 . 32 . . 2 . 17 Cannon 114 | . . . . . . . . . . . . . . . . . . . . . . . . . 35 33 3 7 . 36 Launcher 96 | . 3 4 . 3 16 6 . 10 . . . . 5 . 6 . . 5 . 5 . 20 . . 9 . . . . 4 Special 42 | . . . . . 16 . . . . . . . 13 1 9 . . . . . . . . . . . . . . 3 Kinetic 836 | . 101 26 109 4 97 58 126 243 . . 21 . . . . 7 . . . . . . 14 . 11 . . 2 . 17 Thermal 128 | 2 17 . . . 16 . . . . . . . 13 . 9 . . . . . . . . . 30 16 3 7 . 15 Explosive 92 | . 3 4 . 3 16 6 . 10 . . . . 5 . 6 . . 5 . 5 . 20 . . 9 . . . . . Electromagnetic 64 | . . . . . . . . . . . . . . . . . . . . . . . . . 26 17 . . . 21 Entropic 4 | . . . . . . . . . . . . . . . . . . . . . . . . . . . . . . 4 Robot Hit Streak 17 | 1 10 9 14 10 6 14 17 14 . . . . 4 4 6 . . . . . . . 3 . 10 6 . 2 . 12 Robot Miss Streak 7 | 1 5 1 4 1 4 3 3 7 . . . . 2 . 2 . . . . . . . 2 . 6 5 . 2 . 3 Penetration Max 1 | . . . . . 1 . . . . . . . . . . . . . . . . . . . . . . . . . Secondary Targets 10 | . 2 . 1 . . . 4 3 . . . . . . . . . . . . . . . . . . . . . . Max Gunslinging Chain 1 | . 1 . 1 . . . 1 1 . . . . . . . . . . . . . . . . . . . . . . Shots Hit Robots 807 | 1 70 19 78 5 67 50 78 167 . 5 19 1 11 1 5 6 . 20 . 1 6 10 41 . 70 13 . 4 . 59 Core Hits 493 | . 31 14 27 8 35 26 35 99 . 4 8 . 11 . 16 3 . 17 . 4 4 36 16 . 52 4 . 5 . 38 Critical Kills 4 | . 1 . . . 1 . 1 . . . . . . . . . . . . . . . . . 1 . . . . . Critical Parts Destroyed 19 | . 2 . . . 5 3 1 1 . . 1 . . . . . . . . . . . 1 . 5 . . . . . Critical Strikes 39 | . 3 . . . 6 3 2 1 . . 1 . . . 1 . . . . . . . 5 . 11 . . . . 6 Burn 1 | . . . . . . . . . . . . . . . . . . . . . . . . . 1 . . . . . Destroy 23 | . 3 . . . 6 3 2 1 . . 1 . . . . . . . . . . . 1 . 6 . . . . . Corrupt 1 | . . . . . . . . . . . . . . . . . . . . . . . . . 1 . . . . . Sever 8 | . . . . . . . . . . . . . . . 1 . . . . . . . 4 . 3 . . . . . Sunder 6 | . . . . . . . . . . . . . . . . . . . . . . . . . . . . . . 6 Melee Attacks 450 | . . . . . . . . 36 . 25 80 1 5 1 . 31 . 49 3 6 6 21 68 1 84 . . . . 33 Impact . | . . . . . . . . . . . . . . . . . . . . . . . . . . . . . . . Slashing 416 | . . . . . . . . 35 . 25 80 1 5 1 . 31 . 49 3 6 6 21 68 1 84 . . . . . Piercing . | . . . . . . . . . . . . . . . . . . . . . . . . . . . . . . . Entropic 33 | . . . . . . . . . . . . . . . . . . . . . . . . . . . . . . 33 Sneak Attacks 55 | . . . . . . . . 7 . 4 6 . . . . 4 . 4 . 1 . 1 16 . 11 . . . . 1 Combat Hostiles 1 | . . . . . . . . . . . . . . . . . . . . . . . 1 . . . . . . . Follow-up Attacks . | . . . . . . . . . . . . . . . . . . . . . . . . . . . . . . . Damage Inflicted 36837 | 11 774 467 1194 244 1458 1316 1441 6178 . 461 1333 54 946 . 628 495 . 2199 . 268 574 3299 2750 . 4583 482 . 190 . 5492 Guns 8997 | 11 615 171 1194 47 942 708 1441 3047 . . 26 . . . . . . . . . . . 107 . 497 . . . . 191 Cannons 2085 | . . . . . . . . . . . . . . . . . . . . . . . . . 752 482 . 190 . 661 Explosions 13051 | . 159 296 . 197 508 608 . 2018 . . . . 714 . 574 . . 917 . 161 . 2686 . . 1286 . . . . 2927 Melee 12484 | . . . . . . . . 1046 . 461 1307 54 141 . . 495 . 1282 . 107 574 613 2643 . 2048 . . . . 1713 Ramming 67 | . . . . . . . . 67 . . . . . . . . . . . . . . . . . . . . . . Kinetic 8492 | . 507 171 1194 47 942 708 1441 3047 . . 26 . . . . . . . . . . . 107 . 111 . . . . 191 Thermal 1535 | 11 108 . . . 8 . . . . . . . 91 . 54 . . . . . . . . . 588 129 . 190 . 356 Explosive 9914 | . 159 296 . 197 508 608 . 2018 . . . . 714 . 574 . . 917 . 161 . 2686 . . 1076 . . . . . Electromagnetic 1418 | . . . . . . . . . . . . . . . . . . . . . . . . . 760 353 . . . 305 Impact . | . . . . . . . . . . . . . . . . . . . . . . . . . . . . . . . Slashing 10771 | . . . . . . . . 1046 . 461 1307 54 141 . . 495 . 1282 . 107 574 613 2643 . 2048 . . . . . Piercing . | . . . . . . . . . . . . . . . . . . . . . . . . . . . . . . . Entropic 4640 | . . . . . . . . . . . . . . . . . . . . . . . . . . . . . . 4640 Highest Corruption 10 | . . . . . . . . 3 10 10 4 4 4 4 4 . . 3 3 3 3 . . 8 8 2 2 2 . 8 Average Corruption 2 | . . . . . . . . 2 10 6 4 4 4 4 4 . . 2 3 3 2 . . 8 1 2 2 2 . 4 Corruption Purged 27 | . . . . . . . . 5 . 10 . . . . . . . . . . 3 . . . 9 . . . . . Corruption Blocked . | . . . . . . . . . . . . . . . . . . . . . . . . . . . . . . . Effects 104 | . . . . . . . . 22 1 9 6 6 9 2 4 . . 6 3 5 . . . 1 21 5 2 . . 2 Message Errors 25 | . . . . . . . . 5 . 3 2 2 2 1 1 . . 1 1 1 . . . . 4 1 . . . 1 Matter Fused 30 | . . . . . . . . 8 1 1 2 1 4 . . . . 2 1 1 . . . . 6 1 2 . . . Heat Flow Errors 9 | . . . . . . . . 1 . 1 1 . . . 2 . . . . . . . . 1 3 . . . . . Energy Discharges 13 | . . . . . . . . 3 . 3 . . 1 . . . . 1 1 2 . . . . 1 1 . . . . Parts Rejected 4 | . . . . . . . . . . . . . 2 . . . . 2 . . . . . . . . . . . . Data Loss (minor) 11 | . . . . . . . . 1 . 1 . 2 . 1 . . . . . . . . . . 4 1 . . . 1 Data Loss (major) 7 | . . . . . . . . 1 . . 1 1 . . 1 . . . . 1 . . . . 1 1 . . . . Misfires 3 | . . . . . . . . 2 . . . . . . . . . . . . . . . . 1 . . . . . Alerts 1 | . . . . . . . . 1 . . . . . . . . . . . . . . . . . . . . . . Weapon Failures 1 | . . . . . . . . . . . . . . . . . . . . . . . . . 1 . . . . . Overload Shots . | . . . . . . . . . . . . . . . . . . . . . . . . . . . . . . . Overflow Damage 2708 | . . 5 . . 13 6 . 222 . 47 202 . 100 . . 122 . 429 . . 72 134 497 . 283 23 . . . 553 Projectiles 23 | . . . . . . . . . . . . . . . . . . . . . . . . . . 23 . . . . Explosions 771 | . . 5 . . 13 6 . 70 . . . . 100 . . . . 2 . . . 45 . . 16 . . . . 514 Melee 1914 | . . . . . . . . 152 . 47 202 . . . . 122 . 427 . . 72 89 497 . 267 . . . . 39 Knockbacks . | . . . . . . . . . . . . . . . . . . . . . . . . . . . . . . . Impact . | . . . . . . . . . . . . . . . . . . . . . . . . . . . . . . . Kinetic . | . . . . . . . . . . . . . . . . . . . . . . . . . . . . . . . Secondary . | . . . . . . . . . . . . . . . . . . . . . . . . . . . . . . . Self-Inflicted Damage 779 | . . 50 . . 49 . . 78 . . . . 48 . . . . . . . . . . . 264 . . . . 290 Shots 15 | . . 2 . . 1 . . 2 . . . . 2 . . . . . . . . . . . 6 . . . . 2 Rammed 1 | . . . . . . . . 1 . . . . . . . . . . . . . . . . . . . . . . Targets Rammed 16 | . . . 1 . . . . 15 . . . . . . . . . . . . . . . . . . . . . . Kicked 14 | . . . . . . . . 14 . . . . . . . . . . . . . . . . . . . . . . Crushed 1 | . . . 1 . . . . . . . . . . . . . . . . . . . . . . . . . . . Highest Temperature 567 | 18 108 111 81 21 168 228 567 143 . 103 115 4 35 . 221 1 . 93 . 140 . 344 8 212 372 345 138 370 . 540 Average Temperature 83 | 12 22 68 24 15 82 80 197 28 . 48 68 4 17 . 116 1 . 42 . 75 . 115 4 127 88 64 53 89 . 243 Received Heat Transfer 2447 | . 111 81 306 36 20 153 342 480 . 18 39 18 . . 9 9 . . . . . 39 . . 214 148 . 13 . 411 Effects 25 | . . . . . . . 14 . . . . . . . . . . . . . . 3 . . 4 1 . . . 3 Shutdowns 5 | . . . . . . . 2 . . . . . . . . . . . . . . 1 . . 2 . . . . . Energy Bleed 4 | . . . . . . . . . . . . . . . . . . . . . . 2 . . 2 . . . . . Short Circuit 4 | . . . . . . . 2 . . . . . . . . . . . . . . . . . . . . . . 2 Damage (minor) 5 | . . . . . . . 3 . . . . . . . . . . . . . . . . . . 1 . . . 1 Damage (major) 7 | . . . . . . . 7 . . . . . . . . . . . . . . . . . . . . . . . Siege Activations . | . . . . . . . . . . . . . . . . . . . . . . . . . . . . . . . Robots Corrupted 6 | . . . . . . . . . . . . . . . . . . . . . . . . . 3 1 . . . 2 Combat Hostiles 6 | . . . . . . . . . . . . . . . . . . . . . . . . . 3 1 . . . 2 Parts Fried 12 | . . . . . . . . . . . . . . . . . . . . . . . . . 5 3 . . . 4 Impact Corruptions . | . . . . . . . . . . . . . . . . . . . . . . . . . . . . . . . Robots Melted . | . . . . . . . . . . . . . . . . . . . . . . . . . . . . . . . Combat Hostiles . | . . . . . . . . . . . . . . . . . . . . . . . . . . . . . . . Parts Melted 2 | . . . . . . . . . . . . . . . 1 . . . . . . . . . . 1 . . . . Heat Transferred 2416 | 25 250 . . . 72 . . . . . . . 296 . 185 . . . . . . . . . 829 200 . 226 . 333 Parts Sabotaged . | . . . . . . . . . . . . . . . . . . . . . . . . . . . . . . . Parts Stolen 1 | . . . . . . . . . . . . . . . . . . . . . . . . . . 1 . . . . Parts Stripped . | . . . . . . . . . . . . . . . . . . . . . . . . . . . . . . . Power Chain Reactions 2 | . . . . . . . . . . . . . . . . . . . . . . . . . 2 . . . . . Missiles Intercepted . | . . . . . . . . . . . . . . . . . . . . . . . . . . . . . . . Alert | -11 -10 -10 -9 -9 -9 -8 -8 -7 -7 -7 -6 -6 -6 -6 -5 -5 -5 -5 -5 -5 -5 -4 -4 -4 -4 -4 -4 -4 -3 -3 ------- Run | Scr Mat Min Mat Min Exi Min Mat Fac Was Fac Fac Low Low Dat Pro Fac Was Fac Upp Upp Zhi Pro Fac Was Fac Upp Upp War Pro Res Peak Influence 897 | . 230 238 190 148 . 188 201 897 328 291 437 . . . . 454 153 817 . . . . 280 141 547 . . . . 707 Initial 313 | . . 17 . 71 . . 33 42 313 229 133 . . . . 56 153 107 . . . . 135 60 98 . . . . . Average 179 | . 64 79 72 46 . 123 57 301 318 208 277 . . . . 238 153 249 . . . . 151 82 313 . . . . 368 Maximum Alert Level 3 | . 1 1 . . . . 1 3 1 1 2 . . . . 2 . 3 . . . . 1 . 2 . . . . 3 Low Security (%) 63 | 100 93 86 100 100 . 100 96 30 . 31 18 . . . . 39 100 62 . . . . 74 100 30 . . . . 28 Level 1 24 | . 6 13 . . . . 3 38 100 68 79 . . . . 46 . 14 . . . . 25 . 35 . . . . 11 Level 2 11 | . . . . . . . . 27 . . 2 . . . . 13 . 17 . . . . . . 33 . . . . 58 Level 3 . | . . . . . . . . 3 . . . . . . . . . 5 . . . . . . . . . . . 1 Level 4 . | . . . . . . . . . . . . . . . . . . . . . . . . . . . . . . . Level 5 . | . . . . . . . . . . . . . . . . . . . . . . . . . . . . . . . High Security . | . . . . . . . . . . . . . . . . . . . . . . . . . . . . . . . Max Security . | . . . . . . . . . . . . . . . . . . . . . . . . . . . . . . . Squads Dispatched 51 | . 2 . . . . . 2 15 . 2 7 . . . . 3 . 5 . . . . 2 . 9 . . . . 4 Investigation 11 | . . . . . . . 1 1 . 1 2 . . . . 2 . 1 . . . . . . 3 . . . . . Extermination 17 | . . . . . . . . 6 . . 2 . . . . 1 . 2 . . . . 1 . 4 . . . . 1 Reinforcement 20 | . 2 . . . . . 1 6 . 1 3 . . . . . . 2 . . . . 1 . 2 . . . . 2 Assault 2 | . . . . . . . . 1 . . . . . . . . . . . . . . . . . . . . . 1 Garrison 1 | . . . . . . . . 1 . . . . . . . . . . . . . . . . . . . . . . Intercept . | . . . . . . . . . . . . . . . . . . . . . . . . . . . . . . . Searches Triggered 3 | . . . . . . . . . . . . . . . . 1 . . . . . . . . 2 . . . . . Construction Impeded 2 | . . . . . . . . 2 . . . . . . . . . . . . . . . . . . . . . . Haulers Reinforced 6 | . . . . . . . . 3 . . 1 . . . . . . . . . . . 1 . 1 . . . . . Active Scanning Responses . | . . . . . . . . . . . . . . . . . . . . . . . . . . . . . . . Cargo Convoy Interrupts 1 | . . . . . . . . 1 . . . . . . . . . . . . . . . . . . . . . . Stealth | -11 -10 -10 -9 -9 -9 -8 -8 -7 -7 -7 -6 -6 -6 -6 -5 -5 -5 -5 -5 -5 -5 -4 -4 -4 -4 -4 -4 -4 -3 -3 --------- Run | Scr Mat Min Mat Min Exi Min Mat Fac Was Fac Fac Low Low Dat Pro Fac Was Fac Upp Upp Zhi Pro Fac Was Fac Upp Upp War Pro Res Distress Signals 16 | . . . 2 . . . 1 2 . . . . . . . 2 . 3 . . . . . . 3 . . 1 . 2 Communications Jammed 170 | . . . . . . . . . . . . . . . 11 . . . . . . . 12 . 20 . . . . 127 Distress Signals 169 | . . . . . . . . . . . . . . . 11 . . . . . . . 11 . 20 . . . . 127 Times Spotted 650 | . 29 8 22 4 118 12 24 76 5 13 28 5 12 . 6 37 . 44 . . . 16 10 4 75 20 1 24 . 57 Peak Tracking Total 15 | . 4 3 7 3 11 4 5 15 5 7 5 4 4 . 4 9 . 10 . 1 . 5 3 4 7 7 1 9 . 8 Tactical Retreats 114 | . . . 1 . 44 . 1 6 . 2 8 2 . . . 10 . 5 . . . 3 1 . 16 7 1 1 . 6 Traps | -11 -10 -10 -9 -9 -9 -8 -8 -7 -7 -7 -6 -6 -6 -6 -5 -5 -5 -5 -5 -5 -5 -4 -4 -4 -4 -4 -4 -4 -3 -3 ------- Run | Scr Mat Min Mat Min Exi Min Mat Fac Was Fac Fac Low Low Dat Pro Fac Was Fac Upp Upp Zhi Pro Fac Was Fac Upp Upp War Pro Res Traps Triggered 12 | . . . . . . . . 2 . 2 . . . . . 3 . . . . . . 1 . 4 . . . . . Indirectly . | . . . . . . . . . . . . . . . . . . . . . . . . . . . . . . . Trap Hack Attempts . | . . . . . . . . . . . . . . . . . . . . . . . . . . . . . . . Triggered . | . . . . . . . . . . . . . . . . . . . . . . . . . . . . . . . Disarmed 2 | . 2 . . . . . . . . . . . . . . . . . . . . . . . . . . . . . Reprogrammed . | . . . . . . . . . . . . . . . . . . . . . . . . . . . . . . . Reused . | . . . . . . . . . . . . . . . . . . . . . . . . . . . . . . . Traps Extracted . | . . . . . . . . . . . . . . . . . . . . . . . . . . . . . . . Installed . | . . . . . . . . . . . . . . . . . . . . . . . . . . . . . . . Triggered 13 | . . . . . . . . . . . . . . . . . . . . . . . . . . 1 . 12 . . Exploded 2 | . . . . . 2 . . . . . . . . . . . . . . . . . . . . . . . . . Machines | -11 -10 -10 -9 -9 -9 -8 -8 -7 -7 -7 -6 -6 -6 -6 -5 -5 -5 -5 -5 -5 -5 -4 -4 -4 -4 -4 -4 -4 -3 -3 ---------- Run | Scr Mat Min Mat Min Exi Min Mat Fac Was Fac Fac Low Low Dat Pro Fac Was Fac Upp Upp Zhi Pro Fac Was Fac Upp Upp War Pro Res Machines Disabled 35 | . . . 2 . 8 4 1 7 . . . . . . . 1 . 2 1 . . . . . 7 . . . . 2 Max in Single Turn 4 | . . . 1 . 1 2 1 4 . . . . . . . 1 . 1 1 . . . . . 4 . . . . 1 Garrison Access 8 | . . . . . . . . . . . 2 . . . . . . 2 . . . . 2 . 2 . . . . . Machines Sabotaged . | . . . . . . . . . . . . . . . . . . . . . . . . . . . . . . . Garrisons Compromised . | . . . . . . . . . . . . . . . . . . . . . . . . . . . . . . . Overloaded Fab Kills . | . . . . . . . . . . . . . . . . . . . . . . . . . . . . . . . Hacking | -11 -10 -10 -9 -9 -9 -8 -8 -7 -7 -7 -6 -6 -6 -6 -5 -5 -5 -5 -5 -5 -5 -4 -4 -4 -4 -4 -4 -4 -3 -3 --------- Run | Scr Mat Min Mat Min Exi Min Mat Fac Was Fac Fac Low Low Dat Pro Fac Was Fac Upp Upp Zhi Pro Fac Was Fac Upp Upp War Pro Res Machines Accessed 124 | . 3 1 4 . 2 . 10 7 . 9 18 . . 4 1 7 . 11 1 . 6 . 16 . 13 . 1 6 1 3 Terminals 66 | . 3 . 4 . . . 5 5 . 7 11 . . . 1 4 . 7 . . . . 9 . 8 . . . 1 1 Fabricators 10 | . . . . . . . . . . 1 1 . . . . 2 . 1 . . . . 2 . 2 . . . . 1 Repair Stations 9 | . . . . . . . 2 1 . 1 1 . . . . . . 1 . . . . 2 . 1 . . . . . Recycling Units 3 | . . . . . . . . 1 . . 1 . . . . . . . . . . . 1 . . . . . . . Scanalyzers 6 | . . . . . . . 2 . . . 2 . . . . 1 . . . . . . . . . . . . . 1 Garrison Access 9 | . . . . . . . 1 . . . 2 . . . . . . 2 . . . . 2 . 2 . . . . . Total Hacks 455 | . 9 1 6 . 7 . 37 14 . 36 72 . . 27 1 22 . 61 1 . 18 . 45 . 64 . 1 19 1 13 Successful 268 | . 4 1 2 . 7 . 21 3 . 12 36 . . 27 1 10 . 36 1 . 18 . 25 . 39 . 1 19 1 4 Failed 187 | . 5 . 4 . . . 16 11 . 24 36 . . . . 12 . 25 . . . . 20 . 25 . . . . 9 Catastrophic 43 | . . . 3 . . . 3 5 . 2 10 . . . . 4 . . . . . . 7 . 6 . . . . 3 Database Lockouts . | . . . . . . . . . . . . . . . . . . . . . . . . . . . . . . . Manual 190 | . 5 . 5 . 1 . 10 8 . 21 32 . . . . 16 . 25 1 . . . 24 . 39 . . 2 . 1 Terminals 267 | . 9 . 6 . . . 17 10 . 29 48 . . . 1 16 . 38 . . . . 29 . 53 . . . 1 10 Fabricators 21 | . . . . . . . . . . 2 2 . . . . 5 . 2 . . . . 5 . 4 . . . . 1 Repair Stations 45 | . . . . . . . 6 2 . 5 2 . . . . . . 18 . . . . 8 . 4 . . . . . Recycling Units 4 | . . . . . . . . 2 . . 1 . . . . . . . . . . . 1 . . . . . . . Scanalyzers 31 | . . . . . . . 12 . . . 16 . . . . 1 . . . . . . . . . . . . . 2 Garrison Access 13 | . . . . . . . 2 . . . 3 . . . . . . 3 . . . . 2 . 3 . . . . . Terminal Hacks 166 | . 2 1 2 . 7 . 6 2 . 9 11 . . 27 1 6 . 15 1 . 18 . 8 . 27 . 1 19 1 2 Record 38 | . . . . . 6 . . . . . . . . 11 . . . . . . 7 . . . . . . 13 1 . Part Schematic 24 | . . . . . . . 1 . . . . . . 9 . 2 . 3 . . 3 . 1 . 5 . . . . . Robot Schematic 4 | . . . . . . . . . . . . . . 4 . . . . . . . . . . . . . . . . Robot Analysis 5 | . . . . . . . . . . . . . . . . . . . . . 4 . . . 1 . . . . . Prototype ID Bank 18 | . 1 . . . . . . . . 2 2 . . 3 . . . 1 . . 4 . . . . . . 5 . . Open Door 5 | . . 1 . . . . . . . . . . . . 1 . . . 1 . . . . . . . 1 1 . . Level Access Points 1 | . . . . . . . . . . 1 . . . . . . . . . . . . . . . . . . . . Branch Access Points 6 | . . . . . . . . 1 . 1 1 . . . . . . 2 . . . . . . 1 . . . . . Machine Index 1 | . . . . . . . . . . . . . . . . . . 1 . . . . . . . . . . . . Terminal Index 4 | . . . . . . . . . . 1 1 . . . . . . . . . . . 1 . 1 . . . . . Fabricator Index 2 | . . . . . . . . . . . 1 . . . . . . . . . . . . . 1 . . . . . Repair Station Index 1 | . . . . . . . . . . . . . . . . . . . . . . . . . 1 . . . . . Recycling Unit Index 1 | . . . . . . . . . . . . . . . . . . . . . . . 1 . . . . . . . Scanalyzer Index 3 | . . . . . . . 1 . . . . . . . . 1 . . . . . . . . 1 . . . . . Garrison Index 1 | . . . . . . . . . . . . . . . . . . . . . . . . . . . . . . 1 Alert Level 10 | . . . . . . . 1 . . . 2 . . . . . . 3 . . . . 1 . 3 . . . . . Unreport Threat 4 | . . . . . . . . . . . 1 . . . . . . . . . . . . . 3 . . . . . Locate Traps 10 | . . . . . . . 2 1 . 1 1 . . . . . . 1 . . . . 1 . 2 . . . . 1 Disarm Traps 1 | . 1 . . . . . . . . . . . . . . . . . . . . . . . . . . . . . Dispatch Records 2 | . . . . . . . . . . . . . . . . 1 . . . . . . . . 1 . . . . . Security Status 1 | . . . . . . . . . . . . . . . . . . 1 . . . . . . . . . . . . Transport Status 1 | . . . . . . . . . . 1 . . . . . . . . . . . . . . . . . . . . Investigation Status 1 | . . . . . . . . . . . . . . . . . . . . . . . . . 1 . . . . . Recall Investigation 6 | . . . . . . . . . . . 1 . . . . 2 . 1 . . . . . . 2 . . . . . Recall Extermination 4 | . . . . . . . . . . . . . . . . . . 1 . . . . 1 . 2 . . . . . Recall Reinforcements 1 | . . . . . . . . . . . . . . . . . . 1 . . . . . . . . . . . . Hauler Manifests 6 | . . . 2 . . . 1 . . 1 1 . . . . . . . . . . . . . 1 . . . . . Registered Components 3 | . . . . . . . . . . 1 . . . . . . . . . . . . 1 . 1 . . . . . Registered Prototypes 1 | . . . . . . . . . . . . . . . . . . . . . . . 1 . . . . . . . EX-Prototype ID Bank 1 | . . . . . 1 . . . . . . . . . . . . . . . . . . . . . . . . . Fabricator Hacks 16 | . . . . . . . . . . . 2 . . . . 3 . 2 . . . . 5 . 4 . . . . . Load Schematic 7 | . . . . . . . . . . . 1 . . . . 1 . 1 . . . . 2 . 2 . . . . . Build 9 | . . . . . . . . . . . 1 . . . . 2 . 1 . . . . 3 . 2 . . . . . Repair Station Hacks 28 | . . . . . . . 3 1 . 1 2 . . . . . . 13 . . . . 6 . 2 . . . . . Scan Component 16 | . . . . . . . 2 1 . 1 1 . . . . . . 7 . . . . 3 . 1 . . . . . Repair 12 | . . . . . . . 1 . . . 1 . . . . . . 6 . . . . 3 . 1 . . . . . Recycling Unit Hacks . | . . . . . . . . . . . . . . . . . . . . . . . . . . . . . . . Scanalyzer 29 | . . . . . . . 12 . . . 15 . . . . 1 . . . . . . . . . . . . . 1 Insert Component 14 | . . . . . . . 5 . . . 7 . . . . 1 . . . . . . . . . . . . . 1 Analyze 15 | . . . . . . . 7 . . . 8 . . . . . . . . . . . . . . . . . . . Garrison Access Hacks 8 | . . . . . . . . . . . 2 . . . . . . 2 . . . . 2 . 2 . . . . . Seal Access 8 | . . . . . . . . . . . 2 . . . . . . 2 . . . . 2 . 2 . . . . . Unauthorized Hacks 21 | . 2 . . . . . . . . 2 4 . . . . . . 4 . . . . 4 . 4 . . . . 1 Terminals 20 | . 2 . . . . . . . . 2 4 . . . . . . 4 . . . . 3 . 4 . . . . 1 Track 4 | . 1 . . . . . . . . . 1 . . . . . . 2 . . . . . . . . . . . . Assimilate 5 | . . . . . . . . . . . 2 . . . . . . 1 . . . . . . 1 . . . . 1 Botnet 8 | . . . . . . . . . . 2 . . . . . . . 1 . . . . 2 . 3 . . . . . Disrupt 1 | . 1 . . . . . . . . . . . . . . . . . . . . . . . . . . . . . Operators 2 | . . . . . . . . . . . 1 . . . . . . . . . . . 1 . . . . . . . Fabricators . | . . . . . . . . . . . . . . . . . . . . . . . . . . . . . . . Repair Stations . | . . . . . . . . . . . . . . . . . . . . . . . . . . . . . . . Recycling Units 1 | . . . . . . . . . . . . . . . . . . . . . . . 1 . . . . . . . Monitor 1 | . . . . . . . . . . . . . . . . . . . . . . . 1 . . . . . . . Scanalyzers . | . . . . . . . . . . . . . . . . . . . . . . . . . . . . . . . Garrison Access . | . . . . . . . . . . . . . . . . . . . . . . . . . . . . . . . Data Cores Recovered . | . . . . . . . . . . . . . . . . . . . . . . . . . . . . . . . Used . | . . . . . . . . . . . . . . . . . . . . . . . . . . . . . . . Hacking Detections 73 | . 2 . 2 . . . 9 7 . 8 14 . . . . 4 . 7 . . . . 9 . 9 . . . . 2 Full Trace Events 9 | . . . . . . . 1 1 . 1 2 . . . . 1 . 1 . . . . . . 2 . . . . . Feedback Events 1 | . . . . . . . . . . . . . . . . 1 . . . . . . . . . . . . . . Hackware Fried 1 | . . . . . . . . . . . . . . . . 1 . . . . . . . . . . . . . . Feedback Blocked . | . . . . . . . . . . . . . . . . . . . . . . . . . . . . . . . Robot Schematics Acquired 4 | . . . . . . . . . . . . . . 4 . . . . . . . . . . . . . . . . Robots Built . | . . . . . . . . . . . . . . . . . . . . . . . . . . . . . . . Authchips . | . . . . . . . . . . . . . . . . . . . . . . . . . . . . . . . Time . | . . . . . . . . . . . . . . . . . . . . . . . . . . . . . . . Total Robot Build Rating . | . . . . . . . . . . . . . . . . . . . . . . . . . . . . . . . Part Schematics Acquired 35 | . . . . . . . 6 . . . 6 . . 9 . 2 . 3 . . 3 . 1 . 5 . . . . . Parts Built 14 | . . . . . . . . . . . 1 . . . . 3 . 2 . . . . 4 . 4 . . . . . Authchips 2 | . . . . . . . . . . . . . . . . . . . . . . . 2 . . . . . . . Time 940 | . . . . . . . . . . . 99 . . . . 212 . 117 . . . . 234 . 278 . . . . . Total Part Build Rating 99 | . . . . . . . . . . . 2 . . . . 17 . 14 . . . . 30 . 36 . . . . . Parts Repaired 12 | . . . . . . . 1 . . . 1 . . . . . . 6 . . . . 3 . 1 . . . . . Time 479 | . . . . . . . 76 . . . 108 . . . . . . 197 . . . . 78 . 20 . . . . . Parts Recycled . | . . . . . . . . . . . . . . . . . . . . . . . . . . . . . . . Recycled Matter . | . . . . . . . . . . . . . . . . . . . . . . . . . . . . . . . Retrieved Matter . | . . . . . . . . . . . . . . . . . . . . . . . . . . . . . . . Retrieved Components . | . . . . . . . . . . . . . . . . . . . . . . . . . . . . . . . Parts Scanalyzed 11 | . . . . . . . 5 . . . 6 . . . . . . . . . . . . . . . . . . . Part Schematics Acquired 11 | . . . . . . . 5 . . . 6 . . . . . . . . . . . . . . . . . . . Parts Damaged 1 | . . . . . . . . . . . 1 . . . . . . . . . . . . . . . . . . . Bothacking | -11 -10 -10 -9 -9 -9 -8 -8 -7 -7 -7 -6 -6 -6 -6 -5 -5 -5 -5 -5 -5 -5 -4 -4 -4 -4 -4 -4 -4 -3 -3 ------------ Run | Scr Mat Min Mat Min Exi Min Mat Fac Was Fac Fac Low Low Dat Pro Fac Was Fac Upp Upp Zhi Pro Fac Was Fac Upp Upp War Pro Res Used RIF Installer . | . . . . . . . . . . . . . . . . . . . . . . . . . . . . . . . Robots Hacked 1 | . . . . . . . . 1 . . . . . . . . . . . . . . . . . . . . . . Non-combat 1 | . . . . . . . . 1 . . . . . . . . . . . . . . . . . . . . . . Combat . | . . . . . . . . . . . . . . . . . . . . . . . . . . . . . . . Robot Hacks Applied 1 | . . . . . . . . 1 . . . . . . . . . . . . . . . . . . . . . . find_chute 1 | . . . . . . . . 1 . . . . . . . . . . . . . . . . . . . . . . Relay Couplers Released . | . . . . . . . . . . . . . . . . . . . . . . . . . . . . . . . Fabnet Peak Effective % . | . . . . . . . . . . . . . . . . . . . . . . . . . . . . . . . Robots Rewired 5 | . . . . . . . . . . . . . . . . . . . . . . . . . . . . 5 . . Allies Hacked . | . . . . . . . . . . . . . . . . . . . . . . . . . . . . . . . Hacks Repelled . | . . . . . . . . . . . . . . . . . . . . . . . . . . . . . . . Allies | -11 -10 -10 -9 -9 -9 -8 -8 -7 -7 -7 -6 -6 -6 -6 -5 -5 -5 -5 -5 -5 -5 -4 -4 -4 -4 -4 -4 -4 -3 -3 -------- Run | Scr Mat Min Mat Min Exi Min Mat Fac Was Fac Fac Low Low Dat Pro Fac Was Fac Upp Upp Zhi Pro Fac Was Fac Upp Upp War Pro Res Total Allies 59 | . . . . 6 . . . . . . 2 . . 1 . . 20 1 . . . . . 19 1 . . 5 . 4 Largest Group 20 | . . . . 5 5 . . . . . 2 . . 1 1 . 20 2 . . . . . 19 1 . . 5 . 3 Highest-Rated Group 760 | . . . . 82 82 . . . . . 52 . . 59 59 . 760 50 . . . . . 702 26 . . 291 . 211 Highest-Rated Ally 137 | . . . . 31 31 . . . . . 26 . . 59 59 . 50 25 . . . . . 50 26 . . 65 . 137 Total Orders 12 | . . . . . 4 . . . . . 4 . . . . . . 1 . . . . . . 1 1 . . . 1 STAY 8 | . . . . . 2 . . . . . 3 . . . . . . 1 . . . . . . 1 . . . . 1 ROAM 1 | . . . . . 1 . . . . . . . . . . . . . . . . . . . . . . . . . FOLLOW 1 | . . . . . . . . . . . 1 . . . . . . . . . . . . . . . . . . . RETURN 2 | . . . . . 1 . . . . . . . . . . . . . . . . . . . . 1 . . . . Ally Attacks 274 | . . . . . 44 8 . . . . . . 93 . . . . 7 . . . . . 58 10 14 . 20 . 20 Total Damage 6475 | . . . . . 274 378 . . . . . . 396 . . . . 120 . . . . . 2649 47 63 . 1749 . 799 Kills 25 | . . . . . 3 3 . . . . . . 2 . . . . 1 . . . . . 7 . . . 4 . 5 Allies Corrupted . | . . . . . . . . . . . . . . . . . . . . . . . . . . . . . . . Allies Melted . | . . . . . . . . . . . . . . . . . . . . . . . . . . . . . . . Turrets Deployed 1 | . . . . . . 1 . . . . . . . . . . . . . . . . . . . . . . . . Field Lobotomies 4 | . . . . . . . . . . . . . . 1 . . . . . . . . . . . . . . . 3 Intel | -11 -10 -10 -9 -9 -9 -8 -8 -7 -7 -7 -6 -6 -6 -6 -5 -5 -5 -5 -5 -5 -5 -4 -4 -4 -4 -4 -4 -4 -3 -3 ------- Run | Scr Mat Min Mat Min Exi Min Mat Fac Was Fac Fac Low Low Dat Pro Fac Was Fac Upp Upp Zhi Pro Fac Was Fac Upp Upp War Pro Res Robot Analysis Total 5 | . . . . . . . . . . . . . . . . . . . . . 4 . . . 1 . . . . . Derelict Logs Recovered 17 | . . 1 . 2 . . . . . . . 1 1 . 2 . . . 1 3 . 2 . . . 2 2 . . . Drone Launches 28 | . . . . . 6 . . . . . . . 16 . . . . . . . . . . . 2 4 . . . . Drone Recoveries 26 | . . . . . 5 . . . . . . . 16 . . . . . . . . . . . 1 4 . . . . Exploration | -11 -10 -10 -9 -9 -9 -8 -8 -7 -7 -7 -6 -6 -6 -6 -5 -5 -5 -5 -5 -5 -5 -4 -4 -4 -4 -4 -4 -4 -3 -3 ------------- Run | Scr Mat Min Mat Min Exi Min Mat Fac Was Fac Fac Low Low Dat Pro Fac Was Fac Upp Upp Zhi Pro Fac Was Fac Upp Upp War Pro Res Turns Passed 27853 | 116 1622 1197 1185 1269 6657 470 1871 2256 32 774 1258 228 473 55 164 515 101 865 103 221 157 730 1135 52 2079 476 210 695 206 681 Spaces Moved 28783 | 66 770 584 463 558 2843 188 752 1779 103 1110 2687 464 785 126 388 1228 266 1809 330 427 254 1580 2371 152 3632 731 405 1044 419 469 Core 32 | 3 . . . . . . . . . . . . . . . . . . . . . . . . . . . . . 29 Treads 1725 | 63 246 . . . 1017 . 392 . . . . . . . . . . . . . . . . . . . . . . 7 Legs 1749 | . . . . . 496 188 360 585 . . . . . . . . . . . . . . . . . . . . . 120 Wheels 3534 | . 524 584 463 558 1330 . . 75 . . . . . . . . . . . . . . . . . . . . . . Hover 4941 | . . . . . . . . . . . . . . . . . . . . . . . . . 2029 731 405 1044 419 313 Flight 16802 | . . . . . . . . 1119 103 1110 2687 464 785 126 388 1228 266 1809 330 427 254 1580 2371 152 1603 . . . . . Fastest Speed 26 | 50 160 195 195 210 190 183 183 29 31 31 28 28 28 28 28 28 31 29 29 29 28 34 29 29 26 44 44 38 38 34 Average Speed 75 | 155 183 195 208 210 217 184 218 92 31 31 30 28 28 28 28 30 31 29 29 29 30 34 29 29 39 44 44 42 38 91 Slowest Speed 325 | 160 195 195 210 210 260 190 325 210 31 31 31 28 28 98 28 31 31 32 29 29 34 34 29 29 260 44 44 136 38 260 Overloaded Moves 1 | . . . . . . . . . . . . . . . . . . . . . . . . . 1 . . . . . Propulsion Burnouts . | . . . . . . . . . . . . . . . . . . . . . . . . . . . . . . . Robots Hopped 23 | . . . . . . . . 2 . 5 12 1 . . . 1 . 1 . . . . 1 . . . . . . . Cave-ins Triggered 1 | . . . . . . . . . . . 1 . . . . . . . . . . . . . . . . . . . Exploration Rate (%) 62 | 5 97 100 46 93 92 40 56 44 83 38 50 61 75 80 45 35 95 43 52 62 61 91 45 88 52 88 66 92 63 13 Regions Visited 30 Branch Regions 16 Pre-discovered Areas 12 | . . 1 . . 1 . . . . . . 1 . 1 1 . . . 1 . 3 . . . . 2 . 1 . . Known Exits Taken 14 | . . . . . . . 1 . . 1 1 . . . 1 . . 1 1 1 1 1 . . 1 1 1 1 1 . Unknown Exits Taken 10 | 1 1 1 1 1 1 1 . . . . . 1 1 1 . . . . . . . . . . . . . . . . Scrap Searched 21 | . . 2 . 1 . 1 . . . . . 1 3 . 1 . . . 1 1 . . . . . 4 2 . 4 . Spaces Dug 321 | . . 13 . . . . . 16 . 19 70 . 2 1 . 27 . 22 2 5 . 11 27 1 49 8 3 . . 45 Terrain Destroyed 990 | . 10 31 . 28 17 33 . 65 . 19 70 . 58 1 50 27 . 46 2 67 . 227 27 1 106 12 3 5 . 85 Melee 232 | . . . . . . . . 16 . 19 60 . 2 1 . 22 . 22 2 5 . 11 27 1 43 . . . . 1 Projectile 68 | . . . . . 3 3 . 2 . . 8 . . . . 4 . . . . . . . . 13 12 3 5 . 15 AOE 686 | . 10 31 . 28 14 29 . 47 . . . . 56 . 50 . . 24 . 62 . 216 . . 50 . . . . 69 Terrain Rammed . | . . . . . . . . . . . . . . . . . . . . . . . . . . . . . . . Walls Destroyed . | . . . . . . . . . . . . . . . . . . . . . . . . . . . . . . . Machines Disabled . | . . . . . . . . . . . . . . . . . . . . . . . . . . . . . . . Actions | -11 -10 -10 -9 -9 -9 -8 -8 -7 -7 -7 -6 -6 -6 -6 -5 -5 -5 -5 -5 -5 -5 -4 -4 -4 -4 -4 -4 -4 -3 -3 --------- Run | Scr Mat Min Mat Min Exi Min Mat Fac Was Fac Fac Low Low Dat Pro Fac Was Fac Upp Upp Zhi Pro Fac Was Fac Upp Upp War Pro Res Total 33325 | 75 876 616 581 650 3215 244 921 2170 102 1506 3000 558 1001 142 414 1327 284 2086 333 510 328 1723 2735 158 4115 849 433 1283 465 625 Wait 2352 | . 9 2 10 82 112 . 38 107 . 347 193 94 166 8 1 30 15 187 . 70 36 98 243 4 198 74 21 139 47 21 Move 28711 | 65 769 583 462 557 2842 187 751 1775 102 1099 2663 461 784 125 387 1226 265 1806 329 426 253 1579 2369 151 3631 730 404 1043 418 469 Hop 21 | . . . . . . . . 2 . 5 10 1 . . . 1 . 1 . . . . 1 . . . . . . . Pick Up 214 | 3 23 4 16 1 73 3 16 10 . . 5 . 4 1 2 8 2 5 . . 4 . 7 1 18 1 1 3 . 3 Fast Attach 154 | 6 2 . 4 . 3 3 10 14 . 2 5 . 5 . 1 4 . 15 . . 7 1 12 . 25 2 1 17 . 15 Attach 90 | . 2 . 5 . 5 5 4 16 . . 4 . 4 2 1 4 . 3 . 1 2 . 5 . 17 . . . . 10 Detach 54 | . . . 1 . 6 2 2 8 . . 3 . 5 2 1 3 . 2 . 1 1 . 2 . 8 . . 2 . 5 Swap 154 | . 4 7 7 3 14 8 12 13 . 7 7 1 3 1 5 5 . 4 1 1 6 3 2 . 30 6 1 . . 3 Drop 282 | . 5 3 19 2 79 1 25 22 . 3 8 . 7 1 1 8 2 9 . . 13 1 12 1 28 3 2 20 . 7 Fire 740 | 1 62 17 56 5 81 35 63 134 . . 21 . 18 1 15 7 . 5 . 5 . 20 14 . 76 33 3 9 . 59 Melee 450 | . . . . . . . . 36 . 25 80 1 5 1 . 31 . 49 3 6 6 21 68 1 84 . . . . 33 Ram 1 | . . . . . . . . 1 . . . . . . . . . . . . . . . . . . . . . . Kick 14 | . . . . . . . . 14 . . . . . . . . . . . . . . . . . . . . . . Crush 1 | . . . 1 . . . . . . . . . . . . . . . . . . . . . . . . . . . Escape Stasis 37 | . . . . . . . . 18 . 18 1 . . . . . . . . . . . . . . . . . . . Rewire 50 | . . . . . . . . . . . . . . . . . . . . . . . . . . . . 50 . . Trap . | . . . . . . . . . . . . . . . . . . . . . . . . . . . . . . . Miscellaneous . | . . . . . . . . . . . . . . . . . . . . . . . . . . . . . . . Route ------- -11/Scrapyard -10/Materials (discovered 5 exits: *Mat x3 / *Min x2) -10/Mines (discovered 2 exits: *Mat x2) -9/Materials (discovered 2 exits: [*Min x2]) -9/Mines (discovered 3 exits: *Mat / *Exi / [*Zio]) -9/Exiles (discovered 2 exits: [*Min x2]) -8/Mines -8/Materials (discovered 2 exits: *Fac x2) -7/Factory (discovered 4 exits: *Sto x2 / *Low x2) -7/Waste -7/Factory (discovered 7 exits: *Fac x4 / Sto / *Low x2) -6/Factory (discovered 6 exits: *Fac x2 / *Low x2 / *Ext x2) -6/Lower Caves -6/Lower Caves -6/Data Miner -5/Proximity Caves -5/Factory (discovered 2 exits: *Fac / Upp) -5/Waste -5/Factory (discovered 3 exits: *Fac / *Upp x2) -5/Upper Caves -5/Upper Caves -5/Zhirov -4/Proximity Caves -4/Factory (discovered 4 exits: *Res x2 / *Upp x2) -4/Waste -4/Factory (discovered 5 exits: *Res x2 / *Upp x2 / *Arm) -4/Upper Caves -4/Upper Caves (discovered 2 exits: *Res / *War) -4/Warlord -3/Proximity Caves -3/Research (discovered 2 exits: [*Res] / Tes) History --------- Turn | Location | Event 51 | -11/Scrapyard | Discovered new exit (range 12) 117 | -11/Scrapyard | Entered Materials 325 | -10/Materials | Build established: Mutant 466 | -10/Materials | Discovered new exit (range 5) 657 | -10/Materials | Discovered new exit (range 16) 761 | -10/Materials | Discovered new exit (range 6) 1335 | -10/Materials | Discovered new exit (range 12) 1473 | -10/Materials | Discovered new exit (range 14) 1739 | -10/Materials | Entered Mines 1774 | -10/Mines | Met a Derelict bent on vengeance 1815 | -10/Mines | Discovered new exit (range 8) 2059 | -10/Mines | Learned Materials terminal intel 2060 | -10/Mines | Learned location of Storage (-7) 2063 | -10/Mines | Discovered new exit (range 5) 2302 | -10/Mines | Core integrity fell below 50% 2628 | -10/Mines | Found the Drone Emporium 2643 | -10/Mines | Found Prototype Device 2936 | -10/Mines | Entered Materials 2936 | -9/Materials | Evolved 2 slots: Propulsion x1, Utility x1 2937 | -9/Materials | Loaded intel: 12 terminal locations 3200 | -9/Materials | Discovered new exit (range 15) 3339 | -9/Materials | Build established: Scavenger-Mutant 3953 | -9/Materials | Discovered new exit (range 15) 4121 | -9/Materials | Entered Mines 4124 | -9/Mines | Received a Mining Laser from a helpful Derelict 4162 | -9/Mines | Assembled infested the area 4517 | -9/Mines | Learned location of 2 exits from Materials 4856 | -9/Mines | Build established: Mutant 4899 | -9/Mines | Received a Rocket Launcher from a helpful Derelict 4931 | -9/Mines | A Derelict revealed a hidden shortcut to a safe place 5128 | -9/Mines | Learned Materials emergency access door positions 5206 | -9/Mines | Assisted by bots powering up and referring to "LRC-V3" 5281 | -9/Mines | Discovered new exit (range 6) 5378 | -9/Mines | Deemed a non-threat by the Exiles lab entrance 5378 | -9/Mines | Discovered new exit (range 5) 5390 | -9/Mines | Entered Exiles 5390 | -9/Exiles | Accompanied by 5 allies 5420 | -9/Exiles | Led the pair of lost Derelicts to a safe place 5424 | -9/Exiles | Discovered new exit (range 14) 5511 | -9/Exiles | Met 8R-AWN 5545 | -9/Exiles | Met EX-HEX 5562 | -9/Exiles | Identified Thief Drone Bay 5624 | -9/Exiles | Met EX-BIN 5647 | -9/Exiles | Aligned with FarCom system 5649 | -9/Exiles | Given EX-Vault access code 5700 | -9/Exiles | Opened EX-Vault 5719 | -9/Exiles | Found Longsword +1 5764 | -9/Exiles | Warned to stay clear of 0b10 Research branches 5821 | -9/Exiles | Met EX-DEC 5986 | -9/Exiles | Attacked by the Exiles 7339 | -9/Exiles | Destroyed 8R-AWN 7492 | -9/Exiles | Found 8R-AWN's Boregun 7494 | -9/Exiles | Found 8R-AWN's Boregun 7719 | -9/Exiles | Destroyed EX-HEX 7726 | -9/Exiles | Destroyed EX-BIN 7794 | -9/Exiles | Destroyed EX-DEC 7824 | -9/Exiles | Found Deploy-a-Sentry 7997 | -9/Exiles | Found Prototype Device 8013 | -9/Exiles | Identified System Purifier 8034 | -9/Exiles | Found Prototype Processor 8051 | -9/Exiles | Identified Exp. Core Analyzer 8229 | -9/Exiles | Found Prototype Device 8254 | -9/Exiles | Identified AS-neutralizer No. 17b 8290 | -9/Exiles | Found Prototype Protection 8292 | -9/Exiles | Identified 8R-AWN's Armor/EX 8302 | -9/Exiles | Found Prototype Processor 8329 | -9/Exiles | Identified Exp. Targeting Computer 8418 | -9/Exiles | Found Field Lobotomy Kit 8832 | -9/Exiles | Build established: Scavenger-Mutant 9306 | -9/Exiles | Build established: Mutant 9783 | -9/Exiles | Found Supersonic Drone Bay 9925 | -9/Exiles | Discovered new exit (range 75) 11425 | -9/Exiles | Learned location of Zion (-7) 11569 | -9/Exiles | Build established: Scavenger-Mutant 11959 | -9/Exiles | Build established: Mutant 12047 | -9/Exiles | Stole three prototypes: Field Lobotomy Kit, Longsword +1, Deploy-a-Sentry 12047 | -9/Exiles | Entered Mines 12048 | -8/Mines | 12-ASH came to Exiles' defense 12049 | -8/Mines | DAS Turret deployed 12078 | -8/Mines | Core integrity fell below 50% 12095 | -8/Mines | Core integrity fell below 20% 12095 | -8/Mines | Destroyed 12-ASH 12125 | -8/Mines | Lost 6 parts (1n3u2w) 12255 | -8/Mines | Found Prototype Ballistic Gun 12256 | -8/Mines | Identified 12-ASH's Boomstick 12506 | -8/Mines | Discovered new exit (range 5) 12517 | -8/Mines | Entered Materials 12517 | -8/Materials | Evolved 2 slots: Propulsion x1, Utility x1 12518 | -8/Materials | Identified exit to Factory 12539 | -8/Materials | Build established: Scavenger-Mutant 13646 | -8/Materials | Repaired Broken Enh. Autogun 14180 | -8/Materials | Build established: Mutant 14388 | -8/Materials | Entered Factory 14388 | -7/Factory | Evolved 2 slots: Utility x2 14569 | -7/Factory | Discovered new exit (range 11) 14641 | -7/Factory | Discovered new exit (range 4) 14675 | -7/Factory | Garrison activated, responded to threat 15933 | -7/Factory | Cargo convoy interrupted 15977 | -7/Factory | Destroyed 13 combat bots 15982 | -7/Factory | Lost 11 parts (1p4n2u4w) 16018 | -7/Factory | Found Prototype Hackware 16018 | -7/Factory | Identified Exp. System Shield 16074 | -7/Factory | Found Prototype Launcher 16074 | -7/Factory | Identified Mni. Smartbomb Launcher 16230 | -7/Factory | Identified exit to Storage 16230 | -7/Factory | Identified exit to Lower Caves 16415 | -7/Factory | First assault squad dispatched 16592 | -7/Factory | Build established: Hacker-Sprinter 16644 | -7/Factory | Manually triggered Chute Trap 16644 | -7/Factory | Sucked down chute 16644 | -7/Factory | Entered Waste 16647 | -7/Waste | Spotted C-40 Crusher 16651 | -7/Waste | Spotted C-40 Crusher 16654 | -7/Waste | Spotted C-40 Crusher 16659 | -7/Waste | EMP discharged 16659 | -7/Waste | System corruption reached 10% 16659 | -7/Waste | Spotted C-40 Crusher 16661 | -7/Waste | Spotted C-40 Crusher 16664 | -7/Waste | Spotted C-40 Crusher 16671 | -7/Waste | Discovered new exit (range 14) 16676 | -7/Waste | Entered Factory 17079 | -7/Factory | Identified exit to Factory 17247 | -7/Factory | Core integrity fell below 50% 17450 | -7/Factory | Entered another Factory area 17450 | -6/Factory | Evolved 2 slots: Propulsion x1, Utility x1 17499 | -6/Factory | Identified exit to Lower Caves 17499 | -6/Factory | Identified exit to Extension 17560 | -6/Factory | Repaired System Purifier? 17669 | -6/Factory | Discovered new exit (range 7) 18050 | -6/Factory | Spotted B-75 Beast 18078 | -6/Factory | Discovered new exit (range 5) 18391 | -6/Factory | Crushed by falling debris 18680 | -6/Factory | Fabricated Imp. Flight Unit? 18708 | -6/Factory | Entered Lower Caves 18725 | -6/Lower Caves | Encountered a Warlord checkpoint 18778 | -6/Lower Caves | Spotted B-75 Beast 18934 | -6/Lower Caves | Discovered new exit (range 5) 18936 | -6/Lower Caves | Entered another Lower Caves area 19117 | -6/Lower Caves | Spotted B-75 Beast 19155 | -6/Lower Caves | Spotted 4S-C1H(f) 19155 | -6/Lower Caves | Spotted 3S-BAR(f) 19156 | -6/Lower Caves | Encountered a Master Thief 19156 | -6/Lower Caves | Encountered a Master Thief 19156 | -6/Lower Caves | Spotted ZP-1S3(f) 19163 | -6/Lower Caves | Encountered a Master Thief 19177 | -6/Lower Caves | Discovered new exit (range 5) 19273 | -6/Lower Caves | Allies destroyed ZP-1S3(f) 19315 | -6/Lower Caves | Allies destroyed 4S-C1H(f) 19369 | -6/Lower Caves | Destroyed 3S-BAR(f) 19409 | -6/Lower Caves | Entered Data Miner 19409 | -6/Data Miner | Discovered new exit (range 6) 19413 | -6/Data Miner | Met Data Miner 19422 | -6/Data Miner | Learned location of Section 7 (-2) 19422 | -6/Data Miner | Acquired the access code to Warlord's prototype stash 19424 | -6/Data Miner | Received God Mode back door access code from Data Miner 19430 | -6/Data Miner | Assimilated Data Miner with FLK Orb 19464 | -6/Data Miner | Entered Proximity Caves 19464 | -5/Proximity Caves | Accompanied by 1 ally (Data Miner) 19490 | -5/Proximity Caves | Destroyed Data Miner 19495 | -5/Proximity Caves | Found Prototype Hackware 19495 | -5/Proximity Caves | Identified Quantum Router 19497 | -5/Proximity Caves | Found Prototype Hackware 19498 | -5/Proximity Caves | Found Prototype Hackware 19501 | -5/Proximity Caves | Identified exit to Factory 19616 | -5/Proximity Caves | Snuck into a huge 0b10 base via the rear entrance 19628 | -5/Proximity Caves | Entered Factory 19628 | -5/Factory | Evolved 2 slots: Power x1, Utility x1 19629 | -5/Factory | Identified exit to Upper Caves 19697 | -5/Factory | Identified System Mapper 19749 | -5/Factory | Identified Deep Network Scanner 19839 | -5/Factory | Discovered new exit (range 11) 19848 | -5/Factory | System Mapper fried by hacking feedback 19928 | -5/Factory | Search patrols dispatched 19943 | -5/Factory | Fabricated Adv. Signal Interpreter? 19970 | -5/Factory | Fabricated Lrn. Sensor Array? 19984 | -5/Factory | Build established: Wizard-Sprinter 20143 | -5/Factory | Manually triggered Chute Trap 20143 | -5/Factory | Sucked down chute 20143 | -5/Factory | Entered Waste 20144 | -5/Waste | Joined by Warlord forces that had cleared the area 20169 | -5/Waste | Discovered new exit (range 23) 20244 | -5/Waste | Entered Factory 20244 | -5/Factory | Accompanied by 2 allies 20294 | -5/Factory | Repaired Biomechanical Wings 20321 | -5/Factory | Repaired Lgt. Fission Core 20373 | -5/Factory | Repaired Broken Adv. Phase Shifter 20402 | -5/Factory | Repaired Nuclear Pulse Array 20432 | -5/Factory | Repaired Mic. Fission Core 20459 | -5/Factory | Repaired Imp. Flight Unit? 20485 | -5/Factory | Discovered new exit (range 5) 20492 | -5/Factory | Identified exit to Factory 20591 | -5/Factory | Spotted B-75 Beast 20835 | -5/Factory | Fabricated Field Propulsion Array? 20993 | -5/Factory | Build established: Wizard-Scout 21109 | -5/Factory | Entered Upper Caves 21126 | -5/Upper Caves | Encountered a Warlord checkpoint 21127 | -5/Upper Caves | Learned location of Armory (-4) 21135 | -5/Upper Caves | Acquired the password to a Derelict Tinkerer's latest research 21200 | -5/Upper Caves | Spotted B-75 Beast 21208 | -5/Upper Caves | Discovered new exit (range 12) 21211 | -5/Upper Caves | Identified exit to Upper Caves 21212 | -5/Upper Caves | Entered another Upper Caves area 21242 | -5/Upper Caves | Learned Factory trap positions 21253 | -5/Upper Caves | Learned Factory emergency access door positions 21259 | -5/Upper Caves | Learned Factory terminal intel 21429 | -5/Upper Caves | Discovered new exit (range 10) 21432 | -5/Upper Caves | Identified exit to Zhirov 21433 | -5/Upper Caves | Entered Zhirov 21433 | -5/Zhirov | Discovered new exit (range 3) 21439 | -5/Zhirov | Met Zhirov 21444 | -5/Zhirov | Learned location of Quarantine (-2) 21444 | -5/Zhirov | Learned location of Testing (-3) 21444 | -5/Zhirov | Learned location of Command (-1) 21447 | -5/Zhirov | Zhirov requested help retrieving the SGEMP Prototype 21457 | -5/Zhirov | Found Alien Artifact 21457 | -5/Zhirov | Identified Integrated Reactor 21457 | -5/Zhirov | Installed Integrated Reactor, increased core energy generation (+10) 21567 | -5/Zhirov | Found Alien Artifact 21589 | -5/Zhirov | Identified exit to Proximity Caves 21590 | -5/Zhirov | Entered Proximity Caves 21673 | -4/Proximity Caves | Learned Research terminal intel 21879 | -4/Proximity Caves | Spotted B-86 Titan 22113 | -4/Proximity Caves | Discovered exit to Factory (range 6) 22234 | -4/Proximity Caves | Attracted the attention of an 0b10 checkpoint 22320 | -4/Proximity Caves | Entered Factory 22320 | -4/Factory | Evolved 2 slots: Propulsion x1, Utility x1 22321 | -4/Factory | Loaded intel: 108 trap records 22323 | -4/Factory | Loaded intel: 26 terminal locations 22355 | -4/Factory | Repaired Lrn. Sensor Array 22374 | -4/Factory | Repaired Mic. Fission Core 22393 | -4/Factory | Discovered new exit (range 6) 22394 | -4/Factory | Identified exit to Upper Caves 22561 | -4/Factory | Fabricated Mic. Antimatter Reactor? 22749 | -4/Factory | Found Prototype Slashing Weapon 22749 | -4/Factory | Identified Vibroblade 22810 | -4/Factory | Repaired Exp. Utility Shielding 22832 | -4/Factory | Discovered exit to Upper Caves (range 14) 22848 | -4/Factory | Build established: Wizard-Ninja 22925 | -4/Factory | Discovered new exit (range 17) 23114 | -4/Factory | Fabricated Com. HERF Cannon? 23319 | -4/Factory | Discovered new exit (range 13) 23341 | -4/Factory | Identified exit to Research 23358 | -4/Factory | Fabricated Adv. Hacking Suite? 23455 | -4/Factory | Manually triggered Chute Trap 23455 | -4/Factory | Sucked down chute 23455 | -4/Factory | Entered Waste 23456 | -4/Waste | Spotted C-40 Crusher 23469 | -4/Waste | Spotted C-40 Crusher 23470 | -4/Waste | EMP discharged 23471 | -4/Waste | Spotted C-40 Crusher 23474 | -4/Waste | Spotted C-40 Crusher 23480 | -4/Waste | Spotted C-40 Crusher 23488 | -4/Waste | Met Warlord forces unprepared to attack 23495 | -4/Waste | Allies destroyed C-40 Crusher 23500 | -4/Waste | Spotted C-40 Crusher 23502 | -4/Waste | Allies destroyed C-40 Crusher 23504 | -4/Waste | Discovered new exit (range 12) 23507 | -4/Waste | Identified exit to Factory 23507 | -4/Waste | Entered Factory 23533 | -4/Factory | Spotted B-86 Titan 23669 | -4/Factory | Discovered exit to Upper Caves (range 15) 23702 | -4/Factory | Identified exit to Armory 23806 | -4/Factory | Build established: Wizard-Scout 23850 | -4/Factory | Discovered exit to Research (range 6) 23910 | -4/Factory | Fabricated Cmb. Linear Gravjet? 24143 | -4/Factory | Fabricated Cmb. Linear Gravjet? 24257 | -4/Factory | Search patrols dispatched 24412 | -4/Factory | Build established: Wizard-Ninja 24670 | -4/Factory | Repaired Lrn. Sensor Array 24770 | -4/Factory | Discovered exit to Research (range 8) 24861 | -4/Factory | Spotted B-86 Titan 25010 | -4/Factory | Lost 4 parts (1p2u1w) 25190 | -4/Factory | Lost 4 parts (1p1n2w) 25382 | -4/Factory | Found Quantum Capacitor 25550 | -4/Factory | Search patrols dispatched 25586 | -4/Factory | Entered Upper Caves 25586 | -4/Upper Caves | Spotted GO-EKZ(f) 25587 | -4/Upper Caves | Encountered a Master Thief 25587 | -4/Upper Caves | Alien Artifact stolen by Master Thief 25594 | -4/Upper Caves | Spotted FB-UTB(f) 25595 | -4/Upper Caves | Encountered a Master Thief 25655 | -4/Upper Caves | Destroyed FB-UTB(f) 25675 | -4/Upper Caves | Build established: Machinist-Scout 25838 | -4/Upper Caves | Attracted the attention of an 0b10 checkpoint 26059 | -4/Upper Caves | Discovered new exit (range 8) 26062 | -4/Upper Caves | Identified exit to Upper Caves 26062 | -4/Upper Caves | Entered another Upper Caves area 26070 | -4/Upper Caves | Discovered exit to Research (range 17) 26225 | -4/Upper Caves | Learned Research emergency access door positions 26227 | -4/Upper Caves | Build established: Hacker-Scout 26250 | -4/Upper Caves | Discovered new exit (range 10) 26262 | -4/Upper Caves | Identified exit to Warlord 26272 | -4/Upper Caves | Entered Warlord 26285 | -4/Warlord | Discovered new exit (range 9) 26297 | -4/Warlord | System corruption cleaned by Quarantine Array 26528 | -4/Warlord | Met Warlord 26533 | -4/Warlord | Warlord's base attacked by MAIN.C 26551 | -4/Warlord | Build established: Hacker-Ninja 26560 | -4/Warlord | Learned Testing trap positions 26560 | -4/Warlord | Learned Quarantine emergency access door positions 26560 | -4/Warlord | Learned Armory stockpile data 26560 | -4/Warlord | Learned Factory terminal intel 26560 | -4/Warlord | Learned Factory garrison access intel 26560 | -4/Warlord | Learned Armory scanalyzer intel 26560 | -4/Warlord | Learned Research repair station intel 26660 | -4/Warlord | Found Prototype Piercing Weapon 26660 | -4/Warlord | Identified Vortex Lance 26663 | -4/Warlord | Found Prototype Launcher 26663 | -4/Warlord | Identified Vortex Catalyst Activator 26703 | -4/Warlord | Opened Warlord's prototype stash 26711 | -4/Warlord | Found Prototype Reactor 26711 | -4/Warlord | Identified Vortex Chain Reactor 26722 | -4/Warlord | Found Prototype Device 26722 | -4/Warlord | Identified Thermal Barrier 26730 | -4/Warlord | Found Exp. Targeting Computer 26734 | -4/Warlord | Found Prototype Hackware 26737 | -4/Warlord | Found Prototype Processor 26848 | -4/Warlord | Warlord forces counterattacked 26909 | -4/Warlord | Spotted Executioner 26909 | -4/Warlord | Spotted Striker 26918 | -4/Warlord | Allies destroyed Executioner 26935 | -4/Warlord | Found Prototype Device 26935 | -4/Warlord | Identified Adv. Kinecellerator 26947 | -4/Warlord | Spotted Executioner 26966 | -4/Warlord | Identified exit to Proximity Caves 26967 | -4/Warlord | Entered Proximity Caves 27162 | -3/Proximity Caves | Discovered exit to Research (range 15) 27173 | -3/Proximity Caves | Entered Research 27173 | -3/Research | Evolved 2 slots: Propulsion x1, Utility x1 27174 | -3/Research | Identified exit to Testing 27176 | -3/Research | Loaded intel: 21 terminal locations 27177 | -3/Research | Loaded intel: 4 repair station locations 27243 | -3/Research | Identified Ghost Barrier 27255 | -3/Research | Spotted B-86 Titan 27288 | -3/Research | Discovered new exit (range 14) 27400 | -3/Research | Lost 5 parts (3n1u1w) 27679 | -3/Research | Build established: Hacker-Mutant 27683 | -3/Research | Identified Spectral Analyzer 27719 | -3/Research | First assault squad dispatched 27721 | -3/Research | Core integrity fell below 50% 27728 | -3/Research | Assimilated H-71 Marshal with FLK Orb 27752 | -3/Research | Lost 11 parts (1p6n4u) 27772 | -3/Research | Assimilated L-61 Swordsman with FLK Orb 27783 | -3/Research | Assimilated B-74 Champion with FLK Orb 27817 | -3/Research | Lost 6 parts (1n3u2w) 27840 | -3/Research | Core integrity fell below 20% 27854 | -3/Research | Destroyed by G-67 Veteran with Plasma Rifle Last Messages --------------- 27804_ Acquired Biometal Medium Treads. 27810_ Acquired Nova Cannon. 27811_ G-73 Enforcer destroyed. 27823_ G-67 Veteran destroyed. 27828_ K-01 Serf collects debris. 27833_ EUENE#SFPQVU:91QAP 7T 27834_ Critical hit (Burn: +37). 27836_ Critical hit (Burn: +50). 27839_ G-67 Veteran destroyed. 27839_ Critical hit (Burn: +50). 27842_ Overheating: Exp. Power Amplifier damaged (-20). 27845_ Biometal Medium Treads broken. 27845_ Overheating: Short circuit. 27846_ Nova Cannon destroyed. 27848_ Spectral Analyzer broken. 27848_ Overheating: Short circuit. 27848_ K-01 Serf collects debris. 27849_ Penetrated by Slug. 27851_ Broken Biometal Medium Treads destroyed. 27854_ Acquired 20 matter. Map ----- +----------------------------------------------------+ | ?????????????????????????????????????????????????? | | ?????????????????????????????????????????????????? | | ?????????????????????????????????????????????????? | | ?????????????????????????????????????????????????? | | ?????????????????????????????????????????????????? | | ?????????????????????????????????????????????????? | | ?????????????????????????????????????????????????? | | ?????????????????????????????????????????????????? | | ?????????????????????????????????????????????????? | | ?????????????????????????????????????????????????? | | ?????????????????????????????????????????????????? | | ???????????"""""?????????????????????????????????? | | ???????????""T""?????????????????????????????????? | | ?????????????????????????????????????????????????? | | ?????????? ??????????????????????????????????????? | | ?????????? ?????????????????????????????????????? | | ??????????? ?????????##########?????????????????? | | ???????????? ????????# #?????????????????? | | ????????????? ???????# #?????????????????? | | ??????????####+####???# """#?????????????????? | | ??????????? ??# """#?????????????????? | | ?????????? k ?# """#?????????????????? | | ?????????? # #?????????????????? | | ?????????? Ak ; ################### | | ?????????????????# ; = ## =% | | ?????????????????# #gg@g ## = | | ?????????????????# #;;[#;##### #############?? | | ?????????????????# %m #??# %#??### ##? | | ?????????????????# #??# #??#"" "#? | | ?????????????????# %%% #??# #### # ### | | ?????????????????# ^ %=!% #??# "" % + | | ?????????????????# ##;!%[ #??# "" % % # | | ?????????????????# ?##[!%k#?## "" % # | | ?????????????????# ??# %%###" "" % % # | | ???????????????? ??# !h% " %# | | ?????????????? ???# ! % # | | ????????????? ???# u # | | ??????????? ????# # | | ??????????#+######+#????########" """ # | | ???????????????????????????# # S""" # | | ???????????????????????????# # ! # | | ?????????"""""?????????????# # % # | | ?????????""T""?????????????# ##"""""####### | | ???????????????????????????# ! " ##?????? | | ???????????????????????????# " #??????? | | ???????????????????????????#[ " ## #?????? | | ???????????????????????????# #####?##?????? | | ???????????????????????????# #????????????? | | ???????????????????????????##########????????????? | | ?????????????????????????????????????????????????? | +----------------------------------------------------+ Best States ------------- Heat Dissipation 93 Energy Generation 85 Energy Capacity 700 Matter Stores 300 Matter Capacity 300 Sight Range 24 Robot Scan Range 19 Terrain Scan Density 10 Jamming Range 16 Power Amplification 40 Additional Mass Support 12 Armor Coverage 450 Propulsion Shielding 90 Utility Shielding 90 Weapon Cycling 25 Phase Shifting 15 Evasion (%) 70 Targeting Accuracy 12 Recoil Reduction 4 Offensive Hacking 39 Defensive Hacking 45 Authchip Count 1 Item Schematics ----------------- Cmb. Antigrav System | -8/Materials | Scanalyzed Triangulator | -8/Materials | Scanalyzed Machine Analyzer | -8/Materials | Scanalyzed Mak. Power Source | -8/Materials | Scanalyzed Exp. Core Analyzer | -8/Materials | Scanalyzed Med. Storage Unit | -8/Materials | Hacked Mni. Smartbomb Launcher | -6/Factory | Scanalyzed Adv. Transmission Jammer | -6/Factory | Scanalyzed Imp. Flight Unit | -6/Factory | Scanalyzed System Purifier | -6/Factory | Scanalyzed Structural Scanner | -6/Factory | Scanalyzed Transport Network Coupler | -6/Factory | Scanalyzed Combat Drone Bay | -6/Data Miner | Free Lgt. Regenerative Plating | -6/Data Miner | Free Cld. Gravmag System | -6/Data Miner | Free Exp. Heat Sink | -6/Data Miner | Free Cld. Plasma Rifle | -6/Data Miner | Free Field Propulsion Array | -6/Data Miner | Free Lrn. Sensor Array | -6/Data Miner | Free Hvy. Gauss Cannon | -6/Data Miner | Free Cmb. Gravmag System | -6/Data Miner | Free Adv. Signal Interpreter | -5/Factory | Hacked Adv. Hacking Suite | -5/Factory | Hacked Adv. Terrain Scan Processor | -5/Factory | Hacked Biometal Medium Treads | -5/Factory | Hacked Biomechanical Wings | -5/Factory | Hacked Assault Drone Bay | -5/Zhirov | Free Exp. Optical Array | -5/Zhirov | Free Imp. Arc Thrower | -5/Zhirov | Free Com. HERF Cannon | -4/Factory | Hacked Cmb. Linear Gravjet | -4/Factory | Hacked Hcp. Storage Unit | -4/Factory | Hacked Mni. Fusion Reactor | -4/Factory | Hacked Exp. Terrain Scan Processor | -4/Factory | Hacked Adv. Cooling System | -4/Factory | Hacked Robot Schematics ------------------ R-10 Processor | -6/Data Miner | Free B-48 Gladiator | -6/Data Miner | Free Y-64 Sentinel | -6/Data Miner | Free M-22 Extractor | -6/Data Miner | Free Fabricated ------------ Imp. Flight Unit | x1 | -6/Factory Adv. Signal Interpreter | x2 | -5/Factory Lrn. Sensor Array | x1 | -5/Factory | Preloaded Field Propulsion Array | x2 | -5/Factory Mic. Antimatter Reactor | x2 | -4/Factory | Preloaded Com. HERF Cannon | x1 | -4/Factory | Authchip Adv. Hacking Suite | x1 | -4/Factory | Authchip Cmb. Linear Gravjet | x2 | -4/Factory Cmb. Linear Gravjet | x2 | -4/Factory Alien Tech Used ----------------- Integrated Reactor Achievements -------------- None Challenges ------------ None Game ------ Seed CloakingWeaponScreen Manual? 1 Play Time 06:12:18 Cumulative 355.8 hours Start 2022.04.21 @ 00:00:32 End 2022.04.22 @ 00:55:43 Sessions 5 Manual Loads 0 Difficulty Rogue Special Mode None Game No. 511 Rogue 511 Adventurer 0 Explorer 0 Win Type - Total 6 Types 4/0/1/1/0/0/0/0/0 Lore% 82 Gallery% 84 Achievement% 66 Wizard Run 0 Options --------- ASCII 0 Keyboard 1 Movement Numpad Keybinds 0 Fullscreen 2 Font 24/Smallcaps Map View 76x50 Tactical HUD 1 Map Filters NONE Filters NONE Steam 1 RUN: 5b58a460-c37a-4870-abe3-3e94a300822b